bitfinex/quotes_SOLUSD_20220129
["timestamp","ask_amount","ask_price","bid_price","bid_amount"]
[1643489893042,42.73572726,95.64,95.559,0.25]
[1643489893241,42.98572726,95.64,95.559,0.25]
[1643489893642,42.98572726,95.64,95.548,23.5258]
[1643489893946,6.0,95.63,95.548,23.5258]
[1643489894544,0.25,95.64,95.569,103.8]
[1643489894945,0.25,95.64,95.57,0.25]
[1643489895144,0.5491841,95.652,95.57,0.25]
[1643489895343,0.5491841,95.652,95.57,2.71962078]
[1643489895545,40.49464378,95.651,95.57,2.46962078]
[1643489895746,0.5491841,95.652,95.568,6.0]
[1643489895944,0.5491841,95.652,95.561,103.8]
[1643489896145,6.0,95.65,95.561,103.8]
[1643489896346,6.0,95.65,95.562,0.25]
[1643489896550,6.0,95.65,95.571,6.0]
[1643489896847,6.0,95.65,95.572,0.25]
[1643489897046,0.5491841,95.652,95.572,0.25]
[1643489897449,6.0,95.65,95.572,0.25]
[1643489897651,47.66886668,95.649,95.572,0.25]
[1643489897851,41.66886668,95.648,95.559,0.25]
[1643489898051,6.0,95.638,95.559,0.25]
[1643489898453,6.0,95.638,95.568,6.0]
[1643489898652,0.5491841,95.652,95.568,6.0]
[1643489898854,0.5491841,95.652,95.569,24.3641]
[1643489899056,0.5491841,95.652,95.57,6.0]
[1643489899256,42.36904252,95.651,95.579,6.0]
[1643489899657,6.0,95.641,95.58,2.71962078]
[1643489899854,42.36904252,95.64,95.59,6.0]
[1643489900055,0.5491841,95.652,95.591,39.53370249]
[1643489900256,0.5491841,95.652,95.592,103.8]
[1643489900558,0.5491841,95.652,95.602,6.0]
[1643489900755,0.5491841,95.652,95.603,104.05]
[1643489900956,132.80775545,95.715,95.603,104.05]
[1643489901159,41.88140441,95.699,95.614,33.45544004]
[1643489901358,41.88140441,95.699,95.615,0.25]
[1643489901559,41.88140441,95.699,95.624,6.0]
[1643489901756,41.88140441,95.699,95.625,0.25]
[1643489902158,41.88140441,95.699,95.57,36.0715]
[1643489902358,112.9,95.678,95.593,0.25]
[1643489902559,6.0,95.668,95.593,0.25]
[1643489902959,6.0,95.667,95.593,0.25]
[1643489903158,112.9,95.714,95.594,2.46962078]
[1643489903380,40.90413844,95.699,95.595,0.25]
[1643489903581,40.90413844,95.699,95.604,6.0]
[1643489903784,40.90413844,95.699,95.605,46.16318126]
[1643489903983,40.90413844,95.699,95.615,6.0]
[1643489904296,149.21744571,95.724,95.616,0.25]
[1643489904485,149.21744571,95.724,95.62,12.52]
[1643489904686,149.21744571,95.724,95.621,103.8]
[1643489904887,149.21744571,95.724,95.626,6.0]
[1643489905086,149.21744571,95.724,95.632,6.0]
[1643489905286,149.21744571,95.724,95.633,104.05]
[1643489905589,1.44861018,95.758,95.633,104.05]
[1643489905786,1.44861018,95.762,95.633,104.05]
[1643489906086,2.74,95.759,95.645,43.74978959]
[1643489906387,112.9,95.763,95.646,104.05]
[1643489906586,112.9,95.763,95.656,6.0]
[1643489906798,23.0232,95.752,95.657,0.25]
[1643489906989,23.0232,95.752,95.645,43.74978959]
[1643489907189,1.44861018,95.747,95.655,6.0]
[1643489907387,23.0232,95.752,95.655,6.0]
[1643489907793,1.44861018,95.751,95.655,6.0]
[1643489907988,1.44861018,95.745,95.63,6.0]
[1643489908190,1.44861018,95.74,95.61,12.52]
[1643489908388,1.44861018,95.737,95.62,6.0]
[1643489908688,1.44861018,95.744,95.589,12.23587984]
[1643489908889,1.44861018,95.744,95.595,2.46962078]
[1643489909290,1.44861018,95.745,95.596,12.41365762]
[1643489909489,1.44861018,95.745,95.61,12.52]
[1643489909788,23.0232,95.752,95.61,12.52]
[1643489909789,0.25,95.699,95.611,43.32148806]
[1643489909991,0.25,95.699,95.611,57.94779379]
[1643489910190,0.25,95.699,95.611,45.78413617]
[1643489910388,2.74,95.751,95.611,45.78413617]
[1643489910389,1.44861018,95.746,95.621,6.0]
[1643489910590,23.0232,95.752,95.63,12.52]
[1643489910788,23.0232,95.752,95.632,103.8]
[1643489910988,23.0232,95.752,95.642,6.0]
[1643489911389,23.0232,95.752,95.643,0.25]
[1643489911589,23.0232,95.752,95.643,6.25]
[1643489911990,23.0232,95.752,95.644,2.46264811]
[1643489912391,23.0232,95.752,95.655,35.22209163]
[1643489912789,1.44861018,95.751,95.656,0.25]
[1643489912989,1.44861018,95.751,95.655,35.22209163]
[1643489913189,1.44861018,95.747,95.626,2.45536852]
[1643489913388,1.44861018,95.743,95.6,12.52]
[1643489913589,6.0,95.69,95.593,2.45536852]
[1643489913793,6.0,95.69,95.601,2.45536852]
[1643489914191,1.44861018,95.737,95.602,35.28002082]
[1643489914392,1.44861018,95.734,95.602,35.28002082]
[1643489914592,1.44861018,95.733,95.612,6.0]
[1643489914790,1.44861018,95.735,95.613,6.25]
[1643489914994,1.44861018,95.735,95.613,8.70536852]
[1643489915192,1.44861018,95.737,95.613,8.70536852]
[1643489915392,1.44861018,95.739,95.614,2.45536852]
[1643489915592,1.44861018,95.737,95.624,6.0]
[1643489915793,1.44861018,95.737,95.625,34.68057837]
[1643489915994,1.44861018,95.735,95.625,34.68057837]
[1643489916394,1.44861018,95.735,95.635,6.0]
[1643489916794,1.44861018,95.738,95.636,0.25]
[1643489917193,1.44861018,95.74,95.636,0.25]
[1643489917393,1.44861018,95.742,95.636,0.25]
[1643489917594,1.44861018,95.74,95.636,0.25]
[1643489918093,1.44861018,95.739,95.636,0.25]
[1643489918294,1.44861018,95.738,95.626,0.25]
[1643489918496,1.44861018,95.737,95.626,0.25]
[1643489918795,0.25,95.699,95.626,2.70536852]
[1643489919193,0.25,95.699,95.627,2.45536852]
[1643489919397,0.25,95.699,95.628,0.25]
[1643489920595,0.25,95.699,95.635,6.0]
[1643489920795,112.9,95.727,95.636,0.25]
[1643489921196,112.9,95.727,95.635,6.0]
[1643489921398,23.378,95.726,95.636,0.25]
[1643489921596,23.378,95.726,95.635,6.0]
[1643489921796,23.378,95.726,95.625,34.43057837]
[1643489921997,0.25,95.699,95.626,0.25]
[1643489922701,6.0,95.69,95.626,0.25]
[1643489923199,46.9653,95.699,95.626,0.25]
[1643489925501,6.0,95.689,95.626,0.25]
[1643489926101,46.9653,95.699,95.6,2.45536852]
[1643489926102,0.25,95.688,95.6,2.45536852]
[1643489926304,0.25,95.688,95.593,12.16365762]
[1643489926305,6.0,95.679,95.593,12.16365762]
[1643489926504,6.0,95.689,95.604,6.0]
[1643489926706,6.0,95.689,95.603,6.0]
[1643489927103,6.0,95.689,95.604,45.33629703]
[1643489927504,6.0,95.689,95.614,6.0]
[1643489928004,6.0,95.687,95.615,6.25]
[1643489928206,6.0,95.687,95.615,6.0]
[1643489928405,6.0,95.687,95.616,0.25]
[1643489928609,1.44861018,95.681,95.616,0.25]
[1643489928805,1.44861018,95.681,95.606,2.44978783]
[1643489928806,1.44861018,95.68,95.606,2.44978783]
[1643489929005,1.44861018,95.68,95.604,45.33629703]
[1643489929207,1.44861018,95.674,95.604,45.33629703]
[1643489929407,1.44861018,95.677,95.604,45.33629703]
[1643489929606,1.44861018,95.676,95.604,45.33629703]
[1643489929811,1.69861018,95.676,95.604,45.33629703]
[1643489930007,1.44861018,95.675,95.604,45.33629703]
[1643489930408,1.44861018,95.675,95.605,0.25]
[1643489931008,6.0,95.665,95.605,0.25]
[1643489931608,6.0,95.668,95.604,45.33629703]
[1643489931808,6.0,95.668,95.605,0.25]
[1643489932010,6.0,95.666,95.605,0.25]
[1643489933011,6.0,95.669,95.604,45.33629703]
[1643489933512,6.25,95.668,95.604,45.33629703]
[1643489933914,6.0,95.666,95.604,45.33629703]
[1643489934114,6.0,95.658,95.604,45.33629703]
[1643489934313,6.0,95.658,95.605,0.25]
[1643489934712,1.44861018,95.671,95.605,0.25]
[1643489935314,1.44861018,95.671,95.587,0.25]
[1643489935517,1.44861018,95.672,95.587,42.86395059]
[1643489935715,1.44861018,95.672,95.587,45.31373842]
[1643489935919,6.0,95.662,95.587,42.86395059]
[1643489936118,6.0,95.661,95.587,42.86395059]
[1643489936619,6.0,95.659,95.597,6.0]
[1643489936820,6.0,95.659,95.598,104.05]
[1643489937251,6.0,95.665,95.598,104.05]
[1643489937447,6.0,95.662,95.598,104.05]
[1643489938050,6.0,95.661,95.598,104.05]
[1643489938353,6.0,95.66,95.598,104.05]
[1643489938548,6.25,95.66,95.598,104.05]
[1643489938950,0.25,95.66,95.598,104.05]
[1643489939350,0.25,95.661,95.598,104.05]
[1643489939650,6.0,95.662,95.598,104.05]
[1643489939651,6.0,95.662,95.598,0.25]
[1643489939955,6.0,95.662,95.609,41.46810186]
[1643489940150,6.0,95.66,95.609,41.46810186]
[1643489940451,6.0,95.658,95.609,41.46810186]
[1643489940651,1.44861018,95.665,95.609,41.46810186]
[1643489940852,6.0,95.655,95.609,41.46810186]
[1643489941250,6.0,95.655,95.588,0.25]
[1643489941450,6.0,95.654,95.577,0.25]
[1643489941651,6.0,95.654,95.569,0.25]
[1643489941855,6.0,95.652,95.569,0.25]
[1643489942153,6.0,95.649,95.569,45.34140292]
[1643489942556,6.0,95.648,95.569,45.34140292]
[1643489942952,6.0,95.648,95.57,2.44978783]
[1643489943153,0.25,95.653,95.57,2.44978783]
[1643489943354,0.25,95.653,95.571,0.25]
[1643489943753,6.0,95.652,95.571,0.25]
[1643489943956,24.0022,95.651,95.571,0.25]
[1643489944152,24.0022,95.651,95.57,12.16365762]
[1643489944153,6.0,95.65,95.57,12.16365762]
[1643489944354,6.0,95.641,95.57,12.16365762]
[1643489944654,6.0,95.641,95.569,45.09140292]
[1643489946156,6.0,95.64,95.569,45.09140292]
[1643489946356,6.0,95.639,95.569,45.09140292]
[1643489946558,6.0,95.641,95.569,45.09140292]
[1643489946761,6.0,95.641,95.57,0.25]
[1643489946958,6.0,95.641,95.569,45.09140292]
[1643489947961,48.49063105,95.64,95.569,45.09140292]
[1643489948163,48.49063105,95.639,95.569,45.09140292]
[1643489948365,42.49063105,95.638,95.569,45.09140292]
[1643489948562,6.0,95.628,95.569,45.09140292]
[1643489949064,6.0,95.626,95.569,45.09140292]
[1643489949664,6.0,95.626,95.57,0.25]
[1643489949862,6.0,95.626,95.569,45.09140292]
[1643489950069,6.0,95.626,95.57,0.25]
[1643489950663,6.0,95.626,95.569,45.09140292]
[1643489952063,0.25,95.627,95.569,45.09140292]
[1643489953265,23.803,95.636,95.569,45.09140292]
[1643489954467,1.44861018,95.653,95.569,45.09140292]
[1643489954666,1.44861018,95.665,95.58,103.8]
[1643489954865,6.0,95.643,95.581,0.25]
[1643489955166,6.0,95.649,95.591,41.24494363]
[1643489955565,24.9534,95.666,95.601,6.0]
[1643489956465,6.0,95.649,95.601,6.0]
[1643489956665,0.25,95.658,95.601,6.0]
[1643489964175,6.0,95.649,95.601,6.0]
[1643489964573,1.44861018,95.669,95.601,6.0]
[1643489964775,0.14,108.04,95.601,6.0]
[1643489964776,1.44861018,95.68,95.602,2.69978783]
[1643489964977,1.44861018,95.692,95.602,2.69978783]
[1643489965176,1.7142657,95.705,95.613,35.79347784]
[1643489965375,0.26565552,95.705,95.614,0.25]
[1643489965578,0.26565552,95.705,95.624,103.8]
[1643489965780,178.66749334,95.723,95.623,6.0]
[1643489965781,1.1182,95.723,95.632,62.0]
[1643489965976,23.4192,95.826,95.702,2.44978783]
[1643489966182,78.3048,95.859,95.702,2.44978783]
[1643489966183,125.3325,95.859,95.746,1.67]
[1643489966378,47.0277,95.859,95.75,12.52]
[1643489966577,12.37338412,95.858,95.756,6.0]
[1643489966778,12.37338412,95.857,95.746,1.67]
[1643489966976,19.06565852,95.84,95.746,1.67]
[1643489967180,12.37338412,95.839,95.746,1.67]
[1643489967777,6.0,95.829,95.746,1.67]
[1643489967977,29.4702,95.828,95.746,1.67]
[1643489968180,12.37338412,95.827,95.635,139.5677]
[1643489968379,6.0,95.827,95.68,12.52]
[1643489968577,30.4386,95.826,95.69,6.0]
[1643489968778,0.25,95.825,95.69,6.0]
[1643489968978,6.0,95.818,95.66,12.52]
[1643489969178,3.0,95.811,95.661,41.2861023]
[1643489969380,40.4261,95.81,95.671,103.8]
[1643489969580,6.0,95.8,95.671,109.8]
[1643489969778,19.06565852,95.799,95.671,6.0]
[1643489969979,19.06565852,95.799,95.68,6.0]
[1643489970179,6.0,95.789,95.681,39.46842526]
[1643489970378,6.0,95.789,95.682,6.0]
[1643489970581,47.6684,95.788,95.691,6.0]
[1643489970981,6.0,95.778,95.691,6.0]
[1643489971181,4.63766924,95.777,95.691,6.0]
[1643489971581,6.0,95.767,95.691,6.0]
[1643489971785,6.0,95.767,95.692,0.25]
[1643489971981,6.0,95.766,95.692,0.25]
[1643489972586,6.0,95.766,95.691,6.0]
[1643489972788,6.0,95.766,95.693,2.45783667]
[1643489972985,6.0,95.766,95.692,0.25]
[1643489972986,6.0,95.766,95.703,6.0]
[1643489973185,6.0,95.766,95.692,0.25]
[1643489973788,0.25,95.765,95.692,0.25]
[1643489974186,4.63766924,95.777,95.693,2.45783667]
[1643489974386,4.63766924,95.777,95.7,12.52]
[1643489974586,22.6642,95.819,95.71,6.0]
[1643489974789,22.8242,95.832,95.711,0.25]
[1643489974990,24.1138,95.831,95.721,103.8]
[1643489975386,24.1138,95.831,95.731,6.0]
[1643489975588,17.85407903,95.851,95.74,12.52]
[1643489975788,17.85407903,95.851,95.741,0.25]
[1643489975992,49.0724,95.874,95.741,0.25]
[1643489975993,49.0724,95.874,95.75,6.0]
[1643489976190,49.0724,95.874,95.75,18.52]
[1643489976389,6.0,95.864,95.751,8.70783667]
[1643489976589,6.0,95.864,95.76,6.0]
[1643489976789,6.0,95.864,95.77,12.52]
[1643489977093,23.12058,95.841,95.78,6.0]
[1643489977492,23.12058,95.841,95.781,6.0]
[1643489978089,0.25,95.84,95.751,6.0]
[1643489978288,0.25,95.84,95.752,0.25]
[1643489978515,0.25,95.84,95.753,6.0]
[1643489978713,0.25,95.84,95.754,34.87217001]
[1643489979013,0.25,95.84,95.764,6.0]
[1643489979014,6.0,95.831,95.764,6.0]
[1643489979213,6.0,95.831,95.72,12.29857379]
[1643489979511,6.0,95.831,95.656,89.92890702]
[1643489979512,6.0,95.831,95.657,24.5]
[1643489979716,3.0,95.827,95.692,103.8]
[1643489980111,0.58274776,95.816,95.712,43.37994151]
[1643489980312,24.3387,95.815,95.713,103.8]
[1643489980512,24.3387,95.815,95.723,6.0]
[1643489980913,24.3387,95.815,95.724,0.25]
[1643489981116,24.3387,95.815,95.73,6.0]
[1643489981313,0.58274776,95.816,95.731,40.95074436]
[1643489981513,0.58274776,95.816,95.741,6.0]
[1643489981914,0.58274776,95.816,95.742,6.25]
[1643489982114,0.58274776,95.816,95.742,112.50781593]
[1643489982317,0.58274776,95.816,95.743,2.45781593]
[1643489982516,0.58274776,95.816,95.753,6.0]
[1643489982714,0.58274776,95.816,95.742,6.25]
[1643489983317,0.58274776,95.816,95.742,0.25]
[1643489983718,0.58274776,95.816,95.727,46.47084211]
[1643489983918,0.58274776,95.816,95.732,6.0]
[1643489984118,0.58274776,95.816,95.74,6.0]
[1643489984515,0.58274776,95.816,95.741,6.0]
[1643489984719,0.58274776,95.816,95.742,42.27583013]
[1643489984916,0.58274776,95.816,95.743,8.58195177]
[1643489985116,0.58274776,95.816,95.753,6.0]
[1643489985517,0.58274776,95.816,95.754,6.0]
[1643489985720,0.58274776,95.816,95.755,6.0]
[1643489985924,0.58274776,95.816,95.755,8.58195177]
[1643489986122,6.0,95.807,95.756,8.58195177]
[1643489986325,6.0,95.807,95.757,8.57291806]
[1643489986523,0.58274776,95.816,95.758,8.57291806]
[1643489986724,0.58274776,95.816,95.759,8.57291806]
[1643489986922,0.58274776,95.816,95.743,0.25]
[1643489986923,0.58274776,95.816,95.76,8.57291806]
[1643489987123,0.58274776,95.816,95.761,8.57291806]
[1643489987325,0.58274776,95.816,95.743,0.25]
[1643489987326,0.58274776,95.816,95.745,33.11257973]
[1643489987525,0.58274776,95.816,95.746,8.57291806]
[1643489987728,0.83274776,95.816,95.746,8.82291806]
[1643489988326,0.83274776,95.816,95.746,13.76370688]
[1643489989327,0.83274776,95.816,95.747,2.45781593]
[1643489989526,0.83274776,95.816,95.747,15.97152281]
[1643489989729,0.83274776,95.816,95.748,13.76370688]
[1643489989929,0.58274776,95.816,95.748,16.22152281]
[1643489990127,0.58274776,95.816,95.749,13.51370688]
[1643489990330,0.58274776,95.816,95.75,0.25]
[1643489990633,0.58274776,95.816,95.75,13.76637807]
[1643489991433,0.83274776,95.816,95.75,13.76637807]
[1643489991837,0.83274776,95.816,95.751,13.51637807]
[1643489992031,0.83274776,95.816,95.752,13.51637807]
[1643489992231,0.83274776,95.816,95.753,13.51637807]
[1643489992431,0.83274776,95.816,95.754,12.88616573]
[1643489992732,0.83274776,95.816,95.747,12.88616573]
[1643489992934,6.0,95.807,95.747,12.88616573]
[1643489993133,6.0,95.807,95.748,0.25]
[1643489993333,0.83274776,95.816,95.748,13.13616573]
[1643489994538,0.25,95.816,95.748,13.13616573]
[1643489994735,0.25,95.816,95.749,7.4212263]
[1643489994936,23.4778,95.827,95.759,6.0]
[1643489995139,24.4691,95.841,95.76,4.96341037]
[1643489995336,24.4691,95.841,95.76,26.57353552]
[1643489995637,18.89231338,95.84,95.762,45.37170129]
[1643489995837,18.89231338,95.84,95.763,18.11571959]
[1643489996037,18.89231338,95.84,95.764,17.86571959]
[1643489996236,6.0,95.83,95.765,12.90230922]
[1643489996439,6.0,95.83,95.712,47.6955]
[1643489996637,6.0,95.83,95.724,6.0]
[1643489996837,24.9383,95.829,95.725,5.21238329]
[1643489997038,6.0,95.819,95.735,6.0]
[1643489997268,4.81101438,95.818,95.736,5.21238329]
[1643489997467,4.81101438,95.818,95.737,10.96238329]
[1643489997663,4.81101438,95.818,95.738,4.96238329]
[1643489997864,24.0215,95.817,95.738,17.92237538]
[1643489998064,24.0215,95.817,95.739,17.92237538]
[1643489998265,24.0215,95.817,95.74,17.92237538]
[1643489998566,24.0215,95.817,95.751,42.56665726]
[1643489998765,24.0215,95.817,95.752,18.26010927]
[1643489998968,24.0215,95.817,95.761,6.0]
[1643489999164,24.0215,95.817,95.754,13.29772598]
[1643489999367,24.0215,95.817,95.755,0.25]
[1643489999565,6.0,95.819,95.755,18.50923413]
[1643489999765,27.58410376,95.819,95.756,18.25923413]
[1643489999966,21.58410376,95.819,95.766,33.19631986]
[1643490000264,21.58410376,95.819,95.767,13.54772598]
[1643490000765,6.0,95.831,95.767,0.25]
[1643490000966,6.0,95.831,95.767,12.72877733]
[1643490001364,6.0,95.831,95.768,0.25]
[1643490001567,6.0,95.831,95.768,12.97877733]
[1643490001766,17.25529973,95.83,95.768,12.97877733]
[1643490002167,6.0,95.82,95.768,12.97877733]
[1643490002866,6.0,95.82,95.768,12.72877733]
[1643490003067,6.0,95.82,95.769,13.17250836]
[1643490003269,6.0,95.82,95.77,13.17250836]
[1643490003468,6.0,95.82,95.771,13.17250836]
[1643490003670,6.0,95.82,95.772,13.17250836]
[1643490003870,6.0,95.82,95.773,13.17250836]
[1643490004074,6.0,95.82,95.774,13.17250836]
[1643490004371,6.0,95.82,95.775,13.36549408]
[1643490004669,6.0,95.82,95.776,13.36549408]
[1643490004870,6.0,95.82,95.763,0.25]
[1643490005071,6.0,95.82,95.763,13.61549408]
[1643490005274,6.0,95.82,95.764,4.90116925]
[1643490005474,6.0,95.82,95.764,18.26666333]
[1643490005674,6.0,95.82,95.765,18.51666333]
[1643490005874,0.25,95.819,95.766,18.51666333]
[1643490006075,6.25,95.819,95.767,13.36549408]
[1643490006276,6.25,95.819,95.768,13.36549408]
[1643490006476,6.25,95.819,95.769,13.25276164]
[1643490006680,6.25,95.819,95.77,13.25276164]
[1643490006878,6.25,95.819,95.771,13.25276164]
[1643490007081,6.25,95.819,95.772,13.25276164]
[1643490007278,6.25,95.819,95.756,36.50830476]
[1643490007482,6.25,95.819,95.757,18.15507074]
[1643490007678,6.25,95.819,95.758,18.15507074]
[1643490007878,6.25,95.819,95.759,13.25276164]
[1643490008279,6.25,95.819,95.76,13.25276164]
[1643490008480,6.25,95.819,95.761,13.25276164]
[1643490008779,6.25,95.819,95.74,6.0]
[1643490008979,6.25,95.819,95.741,10.87967021]
[1643490009182,6.25,95.819,95.742,4.87967021]
[1643490009380,6.25,95.819,95.743,17.59689582]
[1643490009581,6.25,95.819,95.744,17.59689582]
[1643490009781,6.25,95.819,95.745,4.87967021]
[1643490009980,6.25,95.819,95.743,35.2596628]
[1643490010181,6.25,95.819,95.744,17.59689582]
[1643490010381,6.25,95.819,95.744,22.47656603]
[1643490010581,6.25,95.819,95.745,4.87967021]
[1643490010782,6.25,95.819,95.745,26.56675111]
[1643490010985,6.25,95.819,95.746,26.56675111]
[1643490011182,6.25,95.819,95.747,21.6870809]
[1643490011385,6.25,95.819,95.748,21.6870809]
[1643490011582,6.25,95.819,95.749,21.6870809]
[1643490011785,6.25,95.819,95.69,12.52]
[1643490011987,6.25,95.819,95.631,36.39175041]
[1643490012185,68.58,95.819,95.706,4.75904114]
[1643490012383,2.95669142,95.818,95.661,4.75904114]
[1643490012585,6.44802803,95.807,95.662,41.43228912]
[1643490012785,6.44802803,95.807,95.663,134.74225199]
[1643490012985,6.0,95.797,95.664,30.94225199]
[1643490013186,6.0,95.797,95.665,23.28541997]
[1643490013387,48.0165,95.796,95.681,35.5112736]
[1643490013586,54.0165,95.796,95.682,23.28541997]
[1643490013786,54.0165,95.796,95.683,18.52637883]
[1643490013985,54.0165,95.796,95.683,23.28541997]
[1643490014185,54.0165,95.796,95.684,4.75904114]
[1643490014388,54.0165,95.796,95.685,18.52637883]
[1643490014586,54.0165,95.796,95.686,4.75904114]
[1643490014784,15.682,95.79,95.681,35.5112736]
[1643490014987,6.0,95.78,95.681,35.5112736]
[1643490015188,23.8237,95.779,95.681,35.5112736]
[1643490015388,6.0,95.778,95.682,9.3551884]
[1643490015585,6.44802803,95.768,95.682,9.3551884]
[1643490015787,23.8237,95.767,95.681,35.5112736]
[1643490015986,6.0,95.757,95.682,9.3551884]
[1643490016186,6.0,95.757,95.683,9.3551884]
[1643490016385,6.0,95.757,95.684,9.3551884]
[1643490016586,6.0,95.757,95.643,0.25]
[1643490016791,24.1655,95.756,95.644,10.6954668]
[1643490016994,6.0,95.746,95.654,6.0]
[1643490017193,6.0,95.746,95.654,11.97577946]
[1643490017390,17.25529973,95.744,95.655,11.97577946]
[1643490017590,6.0,95.734,95.656,5.97577946]
[1643490017988,6.0,95.733,95.657,5.97577946]
[1643490018188,6.0,95.733,95.658,5.97577946]
[1643490018390,6.0,95.733,95.645,45.11952571]
[1643490018391,22.8159,95.743,95.659,5.97577946]
[1643490018690,22.8159,95.743,95.661,41.54226905]
[1643490018889,22.8159,95.743,95.669,6.0]
[1643490019092,22.8159,95.743,95.672,6.0]
[1643490019291,22.8159,95.743,95.672,11.71674567]
[1643490019494,22.8159,95.743,95.673,5.71674567]
[1643490019690,22.8159,95.743,95.674,5.71674567]
[1643490019891,22.8159,95.743,95.661,41.54226905]
[1643490019892,22.8159,95.743,95.675,5.71674567]
[1643490020091,22.8159,95.743,95.673,2.44308548]
[1643490020092,17.64824208,95.759,95.676,41.49932015]
[1643490020293,17.64824208,95.759,95.677,5.96674567]
[1643490020491,6.0,95.749,95.677,12.18184297]
[1643490020893,6.0,95.749,95.677,11.93184297]
[1643490021092,6.0,95.748,95.678,0.25]
[1643490021295,6.0,95.748,95.678,12.18184297]
[1643490021497,6.0,95.748,95.678,11.93184297]
[1643490021694,6.0,95.749,95.679,11.93184297]
[1643490021895,6.0,95.749,95.686,6.0]
[1643490022097,6.0,95.749,95.681,11.93184297]
[1643490022299,6.0,95.749,95.676,35.78257448]
[1643490022502,6.0,95.748,95.677,12.55966619]
[1643490023004,6.0,95.777,95.687,6.0]
[1643490023206,23.939,95.786,95.688,0.25]
[1643490023434,23.939,95.786,95.688,15.25273201]
[1643490023633,3.0,95.806,95.698,6.0]
[1643490023934,23.7329,95.877,95.7,12.52]
[1643490023935,3.0,95.818,95.7,12.52]
[1643490024133,49.0481,95.828,95.71,6.0]
[1643490024333,49.0481,95.828,95.711,0.25]
[1643490024534,49.0481,95.828,95.713,103.8]
[1643490024742,49.0481,95.828,95.714,12.20347785]
[1643490025037,6.0,95.818,95.724,6.0]
[1643490025238,6.0,95.818,95.725,0.25]
[1643490025437,6.0,95.843,95.726,103.8]
[1643490025634,6.0,95.843,95.736,6.0]
[1643490025834,6.0,95.843,95.737,104.05]
[1643490026035,6.0,95.843,95.739,103.8]
[1643490026335,6.0,95.843,95.74,12.45347785]
[1643490026534,6.0,95.835,95.75,6.0]
[1643490026936,0.25,95.834,95.751,0.25]
[1643490027235,6.25,95.834,95.751,12.73151174]
[1643490027837,6.25,95.834,95.751,0.25]
[1643490028038,6.25,95.834,95.752,12.48151174]
[1643490028239,6.25,95.834,95.716,2.44306582]
[1643490028441,6.25,95.834,95.739,12.58435443]
[1643490028638,6.25,95.834,95.739,12.83435443]
[1643490029239,6.25,95.834,95.74,2.44306582]
[1643490029539,6.25,95.834,95.75,109.8]
[1643490029742,6.25,95.834,95.751,12.58435443]
[1643490029940,6.25,95.834,95.751,12.83435443]
[1643490029941,0.25,95.834,95.751,12.83435443]
[1643490030142,0.25,95.834,95.762,41.53148063]
[1643490030340,0.25,95.834,95.763,12.83435443]
[1643490031244,0.25,95.834,95.764,103.8]
[1643490031442,6.25,95.834,95.765,12.25901403]
[1643490031641,6.25,95.834,95.765,12.50901403]
[1643490031842,6.25,95.834,95.766,103.8]
[1643490032041,6.25,95.834,95.767,12.25901403]
[1643490032242,6.25,95.834,95.768,103.8]
[1643490032641,6.25,95.834,95.767,0.25]
[1643490032642,6.25,95.834,95.77,103.8]